[Event "*** Titled Tuesday Blitz"]
[Site "Chess.com"]
[Date "2020.11.03"]
[Round "1"]
[White "fabianvivasz"]
[Black "DenLaz"]
[Result "0-1"]
[WhiteElo "2380"]
[BlackElo "2745"]
[TimeControl "180+1"]
[EndTime "10:07:32 PST"]
[Termination "DenLaz won on time"]

1. e4 {[%clk 0:02:56.7]} 1... e5 {[%clk 0:02:59.6]} 2. Nf3 {[%clk 0:02:54.1]}
2... Nc6 {[%clk 0:03:00.2]} 3. d4 {[%clk 0:02:52.2]} 3... exd4 {[%clk
0:02:59.9]} 4. Bc4 {[%clk 0:02:51]} 4... Nf6 {[%clk 0:02:59]} 5. e5 {[%clk
0:02:44.8]} 5... d5 {[%clk 0:02:58.3]} 6. Bb5 {[%clk 0:02:44.8]} 6... Ne4 {[%clk
0:02:58.1]} 7. Nxd4 {[%clk 0:02:43.5]} 7... Bd7 {[%clk 0:02:56.1]} 8. Bxc6
{[%clk 0:02:43.3]} 8... bxc6 {[%clk 0:02:55.6]} 9. O-O {[%clk 0:02:43]} 9... Bc5
{[%clk 0:02:55]} 10. f3 {[%clk 0:02:42.2]} 10... Ng5 {[%clk 0:02:53.8]} 11. f4
{[%clk 0:02:42.1]} 11... Ne4 {[%clk 0:02:53.1]} 12. Be3 {[%clk 0:02:41.7]} 12...
Bb6 {[%clk 0:02:52.4]} 13. Nd2 {[%clk 0:02:35.4]} 13... Nxd2 {[%clk 0:02:47.6]}
14. Qxd2 {[%clk 0:02:35.1]} 14... c5 {[%clk 0:02:46.7]} 15. Ne2 {[%clk 0:02:04]}
15... d4 {[%clk 0:02:40.6]} 16. Bf2 {[%clk 0:02:02.4]} 16... Bc6 {[%clk
0:02:25.1]} 17. f5 {[%clk 0:01:49.6]} 17... Qc8 {[%clk 0:01:39.4]} 18. Qg5
{[%clk 0:01:42.3]} 18... Qd7 {[%clk 0:01:25.7]} 19. Bh4 {[%clk 0:01:22.8]} 19...
Kf8 {[%clk 0:00:50.4]} 20. f6 {[%clk 0:00:47.9]} 20... Rg8 {[%clk 0:00:49.5]}
21. Nf4 {[%clk 0:00:37.5]} 21... gxf6 {[%clk 0:00:42.7]} 22. Qxf6 {[%clk
0:00:27.3]} 22... d3 {[%clk 0:00:10.4]} 23. e6 {[%clk 0:00:23.5]} 23... Qd4+
{[%clk 0:00:09.6]} 24. Qxd4 {[%clk 0:00:21.8]} 24... cxd4 {[%clk 0:00:10.5]} 25.
cxd3 {[%clk 0:00:15.5]} 25... Rg4 {[%clk 0:00:08.1]} 26. g3 {[%clk 0:00:12.3]}
26... Bc5 {[%clk 0:00:04]} 27. exf7 {[%clk 0:00:10.7]} 27... Kxf7 {[%clk
0:00:04.5]} 28. Rae1 {[%clk 0:00:09.4]} 28... Kg8 {[%clk 0:00:02.8]} 29. Nh5
{[%clk 0:00:07.5]} 29... Rg6 {[%clk 0:00:03.2]} 30. Nf6+ {[%clk 0:00:05.1]}
30... Kh8 {[%clk 0:00:03.7]} 31. Ne4 {[%clk 0:00:03.3]} 31... Bxe4 {[%clk
0:00:03.6]} 32. Rxe4 {[%clk 0:00:01.5]} 32... Kg7 {[%clk 0:00:04.2]} 0-1

[Event "*** Titled Tuesday Blitz"]
[Site "Chess.com"]
[Date "2020.11.03"]
[Round "1"]
[White "anon102030"]
[Black "dosto07"]
[Result "1-0"]
[WhiteElo "2679"]
[BlackElo "2351"]
[TimeControl "180+1"]
[EndTime "10:07:32 PST"]
[Termination "anon102030 won by resignation"]

1. e4 {[%clk 0:02:56.8]} 1... e5 {[%clk 0:02:58.8]} 2. Nc3 {[%clk 0:02:51.8]}
2... Nf6 {[%clk 0:02:57.5]} 3. g3 {[%clk 0:02:50.2]} 3... d5 {[%clk 0:02:56.2]}
4. exd5 {[%clk 0:02:50.3]} 4... Nxd5 {[%clk 0:02:55.6]} 5. Bg2 {[%clk
0:02:50.4]} 5... Nxc3 {[%clk 0:02:55.4]} 6. bxc3 {[%clk 0:02:48.5]} 6... Bc5
{[%clk 0:02:50.4]} 7. Ne2 {[%clk 0:02:48]} 7... Nc6 {[%clk 0:02:49.4]} 8. Rb1
{[%clk 0:02:45.4]} 8... O-O {[%clk 0:02:47.6]} 9. d3 {[%clk 0:02:44.5]} 9... Bb6
{[%clk 0:02:44.6]} 10. O-O {[%clk 0:02:42.6]} 10... Be6 {[%clk 0:02:43.4]} 11.
c4 {[%clk 0:02:41.9]} 11... Qd7 {[%clk 0:02:37.7]} 12. Be3 {[%clk 0:02:41.2]}
12... Bxe3 {[%clk 0:02:03.4]} 13. fxe3 {[%clk 0:02:42.1]} 13... Rab8 {[%clk
0:02:03]} 14. Nc3 {[%clk 0:02:40.6]} 14... Bh3 {[%clk 0:02:00.3]} 15. Qh5 {[%clk
0:02:25.3]} 15... Bxg2 {[%clk 0:01:58.2]} 16. Kxg2 {[%clk 0:02:26.2]} 16... f6
{[%clk 0:01:51.1]} 17. Qf3 {[%clk 0:02:18.4]} 17... b6 {[%clk 0:01:47.5]} 18.
Qd5+ {[%clk 0:02:05.9]} 18... Qxd5+ {[%clk 0:01:43.2]} 19. Nxd5 {[%clk
0:02:06.8]} 19... Rf7 {[%clk 0:01:41.7]} 20. a4 {[%clk 0:02:01.8]} 20... Na5
{[%clk 0:01:36.6]} 21. c5 {[%clk 0:01:55.3]} 21... Rd8 {[%clk 0:01:35.1]} 22.
cxb6 {[%clk 0:01:54.3]} 22... axb6 {[%clk 0:01:33.9]} 23. e4 {[%clk 0:01:48.5]}
23... Ra8 {[%clk 0:01:32.4]} 24. Rb4 {[%clk 0:01:45.9]} 24... Nb7 {[%clk
0:01:27]} 25. Rc4 {[%clk 0:01:39.3]} 25... Nc5 {[%clk 0:01:26.7]} 26. Ra1 {[%clk
0:01:38]} 26... Rd7 {[%clk 0:01:17.2]} 27. a5 {[%clk 0:01:24.5]} 27... Ne6
{[%clk 0:01:02.4]} 28. Rca4 {[%clk 0:00:53.6]} 28... Nc5 {[%clk 0:00:44.3]} 29.
R4a3 {[%clk 0:00:50.6]} 29... bxa5 {[%clk 0:00:42.6]} 30. Rxa5 {[%clk
0:00:51.5]} 30... Rxa5 {[%clk 0:00:42.2]} 31. Rxa5 {[%clk 0:00:51.4]} 31... Ne6
{[%clk 0:00:42.1]} 32. Ra6 {[%clk 0:00:46.3]} 32... Kf7 {[%clk 0:00:42.1]} 33.
Kf2 {[%clk 0:00:45.8]} 33... h5 {[%clk 0:00:38.3]} 34. Ke3 {[%clk 0:00:45.2]}
34... Rd6 {[%clk 0:00:28.7]} 35. Nxc7 {[%clk 0:00:41.6]} 35... Rxa6 {[%clk
0:00:24.3]} 36. Nxa6 {[%clk 0:00:42.5]} 36... Ke7 {[%clk 0:00:24.1]} 37. c3
{[%clk 0:00:39.5]} 37... Kd6 {[%clk 0:00:23.8]} 38. d4 {[%clk 0:00:39.1]} 38...
Nc7 {[%clk 0:00:23.3]} 39. Nxc7 {[%clk 0:00:38.2]} 39... Kxc7 {[%clk 0:00:23.3]}
40. Kd3 {[%clk 0:00:29]} 40... Kd6 {[%clk 0:00:23]} 41. Kc4 {[%clk 0:00:29.1]}
41... Kc6 {[%clk 0:00:22.3]} 42. h3 {[%clk 0:00:21.7]} 42... g6 {[%clk
0:00:18.3]} 43. g4 {[%clk 0:00:18.5]} 43... h4 {[%clk 0:00:17.2]} 44. dxe5
{[%clk 0:00:15.4]} 44... fxe5 {[%clk 0:00:16.4]} 45. Kb4 {[%clk 0:00:15.5]}
45... Kb6 {[%clk 0:00:15.2]} 46. c4 {[%clk 0:00:16.4]} 46... Kc6 {[%clk
0:00:15.2]} 47. c5 {[%clk 0:00:17.3]} 47... Kc7 {[%clk 0:00:14.6]} 48. Kb5
{[%clk 0:00:17.8]} 48... Kd7 {[%clk 0:00:14.5]} 49. c6+ {[%clk 0:00:17.9]} 49...
Kc7 {[%clk 0:00:14.7]} 50. Kc5 {[%clk 0:00:18.2]} 50... g5 {[%clk 0:00:14.9]}
51. Kd5 {[%clk 0:00:18.6]} 51... Kb6 {[%clk 0:00:14]} 52. Kd6 {[%clk 0:00:18.2]}
1-0

[Event "*** Titled Tuesday Blitz"]
[Site "Chess.com"]
[Date "2020.11.03"]
[Round "1"]
[White "MariaFominykh"]
[Black "cassoulet"]
[Result "1-0"]
[WhiteElo "2327"]
[BlackElo "2617"]
[TimeControl "180+1"]
[EndTime "10:07:32 PST"]
[Termination "MariaFominykh won by resignation"]

1. Nf3 {[%clk 0:03:00.9]} 1... Nf6 {[%clk 0:02:59.4]} 2. g3 {[%clk 0:03:01.4]}
2... g6 {[%clk 0:02:58.5]} 3. Bg2 {[%clk 0:03:02]} 3... Bg7 {[%clk 0:02:59.4]}
4. O-O {[%clk 0:03:02.1]} 4... O-O {[%clk 0:03:00.3]} 5. d4 {[%clk 0:03:01.7]}
5... d5 {[%clk 0:03:01.2]} 6. c4 {[%clk 0:03:01.7]} 6... dxc4 {[%clk 0:03:02]}
7. Qc2 {[%clk 0:03:00.1]} 7... Nc6 {[%clk 0:03:02.9]} 8. Qxc4 {[%clk 0:02:58.8]}
8... Be6 {[%clk 0:03:03.3]} 9. Qc2 {[%clk 0:02:54.5]} 9... Bd5 {[%clk
0:03:03.2]} 10. e3 {[%clk 0:02:51.3]} 10... Nb4 {[%clk 0:03:01.4]} 11. Qd2
{[%clk 0:02:44.3]} 11... a5 {[%clk 0:03:01.1]} 12. Nc3 {[%clk 0:02:44.2]} 12...
Bc4 {[%clk 0:03:00]} 13. Rd1 {[%clk 0:02:41.3]} 13... c6 {[%clk 0:02:57.9]} 14.
e4 {[%clk 0:02:32.3]} 14... Qc8 {[%clk 0:02:43.4]} 15. Ne5 {[%clk 0:02:29]}
15... Ba6 {[%clk 0:02:42.6]} 16. a3 {[%clk 0:02:27.9]} 16... Rd8 {[%clk
0:02:38.7]} 17. axb4 {[%clk 0:02:26.5]} 17... axb4 {[%clk 0:02:39.6]} 18. Na4
{[%clk 0:02:26.3]} 18... Qc7 {[%clk 0:02:33.9]} 19. Nc5 {[%clk 0:02:17]} 19...
Bb5 {[%clk 0:02:25.6]} 20. Rxa8 {[%clk 0:02:16.2]} 20... Rxa8 {[%clk 0:02:26.5]}
21. Qxb4 {[%clk 0:02:09.1]} 21... Rd8 {[%clk 0:02:26.9]} 22. Bf4 {[%clk
0:02:03.8]} 22... Qb6 {[%clk 0:02:21.1]} 23. Nc4 {[%clk 0:01:58.8]} 23... Qa7
{[%clk 0:02:18.6]} 24. Na3 {[%clk 0:01:54.6]} 24... Be2 {[%clk 0:02:12.8]} 25.
Rd2 {[%clk 0:01:52.8]} 25... Ba6 {[%clk 0:02:08.2]} 26. Nxa6 {[%clk 0:01:51.2]}
26... Qxa6 {[%clk 0:02:09.1]} 27. h3 {[%clk 0:01:34]} 27... Bf8 {[%clk
0:02:08.1]} 28. Qc4 {[%clk 0:01:31.6]} 28... b5 {[%clk 0:02:05.4]} 29. Qc2
{[%clk 0:01:28.2]} 29... e6 {[%clk 0:02:02.9]} 30. Bg5 {[%clk 0:01:26.9]} 30...
Be7 {[%clk 0:02:01.8]} 31. e5 {[%clk 0:01:25.6]} 31... Nd5 {[%clk 0:02:01.7]}
32. Bxe7 {[%clk 0:01:22.6]} 32... Nxe7 {[%clk 0:02:02.6]} 33. Qc5 {[%clk
0:01:18.3]} 33... Rd7 {[%clk 0:02:01.3]} 34. Rc2 {[%clk 0:01:12.5]} 34... Qa4
{[%clk 0:01:59.5]} 35. Bxc6 {[%clk 0:01:01.7]} 35... Nxc6 {[%clk 0:01:47.5]} 36.
Qxc6 {[%clk 0:01:01.2]} 36... Rxd4 {[%clk 0:01:46.8]} 37. Rc1 {[%clk 0:00:43.6]}
37... Rd5 {[%clk 0:01:42.5]} 38. Qe8+ {[%clk 0:00:37.6]} 38... Kg7 {[%clk
0:01:42.1]} 39. Rc7 {[%clk 0:00:20.4]} 39... Rd1+ {[%clk 0:01:07.7]} 40. Kh2
{[%clk 0:00:19.7]} 40... Kh6 {[%clk 0:01:02.3]} 41. Qxf7 {[%clk 0:00:19.9]}
41... Qe4 {[%clk 0:00:59.4]} 42. Qxh7+ {[%clk 0:00:18.3]} 42... Kg5 {[%clk
0:01:00.3]} 43. Qh4+ {[%clk 0:00:16.1]} 43... Qxh4 {[%clk 0:00:59.1]} 44. gxh4+
{[%clk 0:00:16.3]} 44... Kxh4 {[%clk 0:00:59]} 45. Nxb5 {[%clk 0:00:16.1]} 45...
Rd2 {[%clk 0:00:59.4]} 46. Kg2 {[%clk 0:00:14.7]} 46... Rxb2 {[%clk 0:00:59.2]}
47. Nd4 {[%clk 0:00:15.2]} 47... Kg5 {[%clk 0:00:57.8]} 48. Rf7 {[%clk
0:00:13.9]} 48... Rb6 {[%clk 0:00:57.2]} 49. Rf6 {[%clk 0:00:13.3]} 49... Rb4
{[%clk 0:00:54.9]} 50. Nxe6+ {[%clk 0:00:13.3]} 50... Kh4 {[%clk 0:00:55.2]} 51.
Rxg6 {[%clk 0:00:12.8]} 51... Re4 {[%clk 0:00:54.2]} 52. Rg4+ {[%clk 0:00:12.4]}
52... Rxg4+ {[%clk 0:00:52.7]} 53. hxg4 {[%clk 0:00:13.3]} 53... Kxg4 {[%clk
0:00:53.6]} 54. Nd4 {[%clk 0:00:13.3]} 54... Kg5 {[%clk 0:00:53.6]} 55. e6
{[%clk 0:00:13.7]} 55... Kf6 {[%clk 0:00:54.5]} 56. f4 {[%clk 0:00:14.2]} 56...
Ke7 {[%clk 0:00:55.1]} 57. Kf3 {[%clk 0:00:14.7]} 57... Kf6 {[%clk 0:00:56]} 58.
Ke4 {[%clk 0:00:15.3]} 58... Ke7 {[%clk 0:00:56.9]} 59. Kd5 {[%clk 0:00:15.8]}
59... Kf6 {[%clk 0:00:57.8]} 60. Kd6 {[%clk 0:00:16.2]} 60... Kg7 {[%clk
0:00:57.9]} 61. Kd7 {[%clk 0:00:17.1]} 1-0

[Event "*** Titled Tuesday Blitz"]
[Site "Chess.com"]
[Date "2020.11.03"]
[Round "1"]
[White "esskeettit"]
[Black "Jospem"]
[Result "0-1"]
[WhiteElo "2469"]
[BlackElo "3015"]
[TimeControl "180+1"]
[EndTime "10:07:36 PST"]
[Termination "Jospem won by checkmate"]

1. d4 {[%clk 0:03:00.9]} 1... Nf6 {[%clk 0:02:58.8]} 2. c4 {[%clk 0:02:59.2]}
2... e6 {[%clk 0:02:59.2]} 3. Nc3 {[%clk 0:02:57.3]} 3... Bb4 {[%clk 0:02:59.4]}
4. e3 {[%clk 0:02:57.1]} 4... O-O {[%clk 0:02:59.6]} 5. Bd3 {[%clk 0:02:57.2]}
5... c5 {[%clk 0:02:55.2]} 6. Ne2 {[%clk 0:02:56.4]} 6... cxd4 {[%clk
0:02:50.5]} 7. exd4 {[%clk 0:02:57.3]} 7... d5 {[%clk 0:02:50.5]} 8. cxd5 {[%clk
0:02:56.2]} 8... exd5 {[%clk 0:02:48.2]} 9. O-O {[%clk 0:02:56.1]} 9... h6
{[%clk 0:02:48]} 10. a3 {[%clk 0:02:54.6]} 10... Be7 {[%clk 0:02:44.2]} 11. Bf4
{[%clk 0:02:50.2]} 11... Nc6 {[%clk 0:02:43.5]} 12. Rc1 {[%clk 0:02:49]} 12...
Be6 {[%clk 0:02:26.6]} 13. Bc2 {[%clk 0:02:46.2]} 13... Re8 {[%clk 0:02:24.3]}
14. Qd3 {[%clk 0:02:37.1]} 14... Bd6 {[%clk 0:02:19.7]} 15. Rfe1 {[%clk
0:02:29.9]} 15... Qb8 {[%clk 0:02:10.5]} 16. Bxd6 {[%clk 0:02:20.3]} 16... Qxd6
{[%clk 0:02:10.2]} 17. Bb3 {[%clk 0:02:11.2]} 17... Rad8 {[%clk 0:02:04.8]} 18.
Ng3 {[%clk 0:01:58.4]} 18... Qf4 {[%clk 0:02:01.6]} 19. Nce2 {[%clk 0:01:57.7]}
19... Qh4 {[%clk 0:01:54.4]} 20. Ba4 {[%clk 0:01:49.4]} 20... Rc8 {[%clk
0:01:41.3]} 21. Bxc6 {[%clk 0:01:36.1]} 21... bxc6 {[%clk 0:01:42.2]} 22. Rc2
{[%clk 0:01:31.4]} 22... Qg5 {[%clk 0:01:31.4]} 23. Rec1 {[%clk 0:01:20.7]}
23... h5 {[%clk 0:01:18.5]} 24. Rxc6 {[%clk 0:01:05.8]} 24... Rxc6 {[%clk
0:01:11]} 25. Rxc6 {[%clk 0:01:06.7]} 25... h4 {[%clk 0:01:11.2]} 26. Nf1 {[%clk
0:01:05.7]} 26... h3 {[%clk 0:01:01.4]} 27. Qg3 {[%clk 0:00:39.2]} 27... Qh6
{[%clk 0:00:56.5]} 28. Ne3 {[%clk 0:00:32.5]} 28... Ne4 {[%clk 0:00:47.1]} 29.
Qf4 {[%clk 0:00:28.1]} 29... Qh5 {[%clk 0:00:43.9]} 30. Ng3 {[%clk 0:00:23]}
30... Nxg3 {[%clk 0:00:43.9]} 31. Qxg3 {[%clk 0:00:20.6]} 31... hxg2 {[%clk
0:00:42.4]} 32. Kxg2 {[%clk 0:00:19.9]} 32... Qe2 {[%clk 0:00:39.3]} 33. Rc2
{[%clk 0:00:18.5]} 33... Qd3 {[%clk 0:00:38.6]} 34. Qf4 {[%clk 0:00:15.9]} 34...
Qg6+ {[%clk 0:00:32.7]} 35. Qg3 {[%clk 0:00:15.1]} 35... Qe4+ {[%clk 0:00:32.7]}
36. Kg1 {[%clk 0:00:11.9]} 36... Qxd4 {[%clk 0:00:31.9]} 37. Rc7 {[%clk
0:00:11.3]} 37... Qxb2 {[%clk 0:00:24.9]} 38. Rxa7 {[%clk 0:00:10.7]} 38... d4
{[%clk 0:00:24.9]} 39. Ng4 {[%clk 0:00:10]} 39... Bxg4 {[%clk 0:00:12.5]} 40.
Qxg4 {[%clk 0:00:10.9]} 40... d3 {[%clk 0:00:11]} 41. Qf5 {[%clk 0:00:10.2]}
41... Qc1+ {[%clk 0:00:07.2]} 42. Kg2 {[%clk 0:00:09.9]} 42... Qc6+ {[%clk
0:00:07.8]} 43. Kg1 {[%clk 0:00:06.6]} 43... Re1# {[%clk 0:00:07.6]} 0-1

[Event "*** Titled Tuesday Blitz"]
[Site "Chess.com"]
[Date "2020.11.03"]
[Round "1"]
[White "Terao90"]
[Black "Kezin_Roman"]
[Result "0-1"]
[WhiteElo "2369"]
[BlackElo "2721"]
[TimeControl "180+1"]
[EndTime "10:07:38 PST"]
[Termination "Kezin_Roman won by resignation"]

1. e4 {[%clk 0:03:00.8]} 1... c5 {[%clk 0:02:59.6]} 2. Nf3 {[%clk 0:03:00.6]}
2... e6 {[%clk 0:03:00.4]} 3. Nc3 {[%clk 0:03:00.1]} 3... Nc6 {[%clk 0:03:00]}
4. Bb5 {[%clk 0:02:59.7]} 4... Nge7 {[%clk 0:03:00.5]} 5. O-O {[%clk 0:02:56.5]}
5... a6 {[%clk 0:03:00.7]} 6. Bxc6 {[%clk 0:02:56.3]} 6... Nxc6 {[%clk
0:03:01.6]} 7. d4 {[%clk 0:02:55.5]} 7... cxd4 {[%clk 0:03:02.5]} 8. Nxd4 {[%clk
0:02:56.4]} 8... Qc7 {[%clk 0:03:01.5]} 9. Re1 {[%clk 0:02:53.6]} 9... d6 {[%clk
0:03:01.6]} 10. Nxc6 {[%clk 0:02:34.3]} 10... bxc6 {[%clk 0:03:01.4]} 11. e5
{[%clk 0:02:34.5]} 11... dxe5 {[%clk 0:02:57.7]} 12. Qh5 {[%clk 0:02:34.5]}
12... g6 {[%clk 0:02:42.5]} 13. Qxe5 {[%clk 0:02:32.4]} 13... Qxe5 {[%clk
0:02:42.8]} 14. Rxe5 {[%clk 0:02:33]} 14... Bg7 {[%clk 0:02:43.5]} 15. Re1
{[%clk 0:02:30.8]} 15... O-O {[%clk 0:02:40.2]} 16. Bf4 {[%clk 0:02:19.1]} 16...
f6 {[%clk 0:02:27.2]} 17. Na4 {[%clk 0:02:09.6]} 17... e5 {[%clk 0:02:27]} 18.
Be3 {[%clk 0:02:08.8]} 18... Bf5 {[%clk 0:02:27.2]} 19. c4 {[%clk 0:02:06.2]}
19... Rfd8 {[%clk 0:02:23.2]} 20. b3 {[%clk 0:02:00.5]} 20... Bf8 {[%clk
0:02:07.7]} 21. Bc5 {[%clk 0:01:57.4]} 21... Rd2 {[%clk 0:02:00.6]} 22. Be3
{[%clk 0:01:51.6]} 22... Rc2 {[%clk 0:01:55.6]} 23. Rec1 {[%clk 0:01:41.5]}
23... Rxc1+ {[%clk 0:01:52.9]} 24. Rxc1 {[%clk 0:01:42.4]} 24... Rd8 {[%clk
0:01:53.8]} 25. Nc5 {[%clk 0:01:35.6]} 25... Bxc5 {[%clk 0:01:46.6]} 26. Bxc5
{[%clk 0:01:35.3]} 26... Rd2 {[%clk 0:01:47.3]} 27. a4 {[%clk 0:01:21.8]} 27...
Bc2 {[%clk 0:01:27.6]} 28. Be3 {[%clk 0:01:07.5]} 28... Rd3 {[%clk 0:01:27.7]}
29. b4 {[%clk 0:00:53.5]} 29... Bxa4 {[%clk 0:01:26.9]} 30. h3 {[%clk
0:00:48.4]} 30... Bb3 {[%clk 0:01:16.7]} 31. h4 {[%clk 0:00:42]} 31... Kf7
{[%clk 0:01:15.9]} 32. g4 {[%clk 0:00:26]} 32... Ke6 {[%clk 0:01:09.4]} 33. b5
{[%clk 0:00:15]} 33... axb5 {[%clk 0:01:07.4]} 34. cxb5 {[%clk 0:00:15.9]} 34...
cxb5 {[%clk 0:01:07.4]} 35. Rc6+ {[%clk 0:00:14.9]} 35... Rd6 {[%clk 0:01:06.2]}
36. Rc7 {[%clk 0:00:14.4]} 36... Rd7 {[%clk 0:00:58.9]} 37. Rc6+ {[%clk
0:00:14.5]} 37... Kf7 {[%clk 0:00:59.2]} 38. Rb6 {[%clk 0:00:14.2]} 38... Bc4
{[%clk 0:00:50.9]} 39. f4 {[%clk 0:00:11.5]} 39... exf4 {[%clk 0:00:46]} 40.
Bxf4 {[%clk 0:00:11.9]} 40... Rd4 {[%clk 0:00:46.3]} 41. Rb7+ {[%clk 0:00:09.6]}
41... Ke6 {[%clk 0:00:46.1]} 42. Rb6+ {[%clk 0:00:08.4]} 42... Ke7 {[%clk
0:00:33.7]} 43. Rb7+ {[%clk 0:00:08.3]} 43... Ke8 {[%clk 0:00:34.2]} 44. Bg3
{[%clk 0:00:02.2]} 44... Rxg4 {[%clk 0:00:32.2]} 45. Kf2 {[%clk 0:00:02.7]}
45... h5 {[%clk 0:00:32]} 46. Kf3 {[%clk 0:00:02.8]} 46... Bd5+ {[%clk
0:00:31.4]} 47. Kf2 {[%clk 0:00:02.4]} 47... Bxb7 {[%clk 0:00:32.3]} 0-1

[Event "*** Titled Tuesday Blitz"]
[Site "Chess.com"]
[Date "2020.11.03"]
[Round "1"]
[White "Chess2019Player"]
[Black "ChristianAlm"]
[Result "1-0"]
[WhiteElo "2264"]
[BlackElo "2547"]
[TimeControl "180+1"]
[EndTime "10:07:38 PST"]
[Termination "Chess2019Player won by resignation"]

1. Nf3 {[%clk 0:02:59]} 1... Nf6 {[%clk 0:02:59.8]} 2. c4 {[%clk 0:02:57.4]}
2... g6 {[%clk 0:03:00.2]} 3. b3 {[%clk 0:02:54.4]} 3... Bg7 {[%clk 0:02:59.9]}
4. Bb2 {[%clk 0:02:54.9]} 4... O-O {[%clk 0:03:00.1]} 5. g3 {[%clk 0:02:54.7]}
5... b6 {[%clk 0:02:59.4]} 6. Bg2 {[%clk 0:02:54.8]} 6... Bb7 {[%clk 0:02:59.7]}
7. O-O {[%clk 0:02:55.2]} 7... d5 {[%clk 0:02:59.9]} 8. cxd5 {[%clk 0:02:54.5]}
8... Bxd5 {[%clk 0:02:55.3]} 9. Nc3 {[%clk 0:02:54.1]} 9... Bb7 {[%clk
0:02:55.9]} 10. Rc1 {[%clk 0:02:52.5]} 10... c5 {[%clk 0:02:56.2]} 11. d4 {[%clk
0:02:42.2]} 11... cxd4 {[%clk 0:02:56]} 12. Qxd4 {[%clk 0:02:42.3]} 12... Nc6
{[%clk 0:02:50.2]} 13. Qxd8 {[%clk 0:02:38.2]} 13... Rfxd8 {[%clk 0:02:51.1]}
14. Rfd1 {[%clk 0:02:31.4]} 14... Rxd1+ {[%clk 0:02:45.4]} 15. Rxd1 {[%clk
0:02:32.3]} 15... Rd8 {[%clk 0:02:45.4]} 16. Rxd8+ {[%clk 0:02:19.8]} 16... Nxd8
{[%clk 0:02:46.3]} 17. Ne5 {[%clk 0:02:20.3]} 17... Bxg2 {[%clk 0:02:43.2]} 18.
Kxg2 {[%clk 0:02:21.2]} 18... Kf8 {[%clk 0:02:33.1]} 19. Nb5 {[%clk 0:02:04.1]}
19... a6 {[%clk 0:02:32.3]} 20. Nc7 {[%clk 0:02:02.4]} 20... a5 {[%clk
0:02:30.8]} 21. Nc4 {[%clk 0:02:01.2]} 21... Nd7 {[%clk 0:02:25.6]} 22. Bxg7+
{[%clk 0:02:00.2]} 22... Kxg7 {[%clk 0:02:25.7]} 23. Nd5 {[%clk 0:02:00.8]}
23... a4 {[%clk 0:02:09.2]} 24. bxa4 {[%clk 0:01:53.2]} 24... Nc5 {[%clk
0:02:08.9]} 25. Ncxb6 {[%clk 0:01:45]} 25... Nc6 {[%clk 0:02:07.8]} 26. Kf3
{[%clk 0:01:25.5]} 26... e6 {[%clk 0:02:06.7]} 27. Nc3 {[%clk 0:01:19.8]} 27...
Kf6 {[%clk 0:02:01]} 28. Ne4+ {[%clk 0:01:19.6]} 28... Nxe4 {[%clk 0:01:57.6]}
29. Kxe4 {[%clk 0:01:20.5]} 29... Ke7 {[%clk 0:01:56.8]} 30. Nc4 {[%clk
0:01:15.8]} 30... f5+ {[%clk 0:01:51.6]} 31. Kf4 {[%clk 0:01:05.9]} 31... Kf6
{[%clk 0:01:50.1]} 32. a5 {[%clk 0:01:01.2]} 32... e5+ {[%clk 0:01:50.4]} 33.
Ke3 {[%clk 0:01:00.6]} 33... Ke6 {[%clk 0:01:50.4]} 34. a6 {[%clk 0:00:44.5]}
34... Kd5 {[%clk 0:01:47.4]} 35. Nb6+ {[%clk 0:00:43.5]} 35... Kd6 {[%clk
0:01:41.2]} 36. g4 {[%clk 0:00:17.8]} 36... Kc7 {[%clk 0:01:23.8]} 37. Nd5+
{[%clk 0:00:10.7]} 37... Kb8 {[%clk 0:01:20.5]} 38. gxf5 {[%clk 0:00:09.6]}
38... gxf5 {[%clk 0:01:21.4]} 39. f4 {[%clk 0:00:05.3]} 39... e4 {[%clk
0:01:07.1]} 40. Kf2 {[%clk 0:00:03.4]} 40... Ka7 {[%clk 0:01:02.5]} 41. Kg3
{[%clk 0:00:03.9]} 41... Kxa6 {[%clk 0:00:57.7]} 42. Kh4 {[%clk 0:00:04.2]}
42... Kb5 {[%clk 0:00:58.2]} 43. Kg5 {[%clk 0:00:04.3]} 43... Kc4 {[%clk
0:00:58.4]} 44. Nb6+ {[%clk 0:00:03.5]} 44... Kc5 {[%clk 0:00:58.8]} 45. Nd7+
{[%clk 0:00:02.9]} 45... Kd6 {[%clk 0:00:59.2]} 46. Nf6 {[%clk 0:00:01.4]} 46...
Ne7 {[%clk 0:00:57.9]} 47. Nxh7 {[%clk 0:00:01.9]} 47... Ke6 {[%clk 0:00:57.6]}
48. Nf6 {[%clk 0:00:02.3]} 48... e3 {[%clk 0:00:52.7]} 49. h4 {[%clk 0:00:02.8]}
49... Nc6 {[%clk 0:00:53.3]} 50. h5 {[%clk 0:00:02.5]} 50... Nd4 {[%clk
0:00:53.9]} 51. h6 {[%clk 0:00:01.1]} 51... Nxe2 {[%clk 0:00:54.4]} 52. h7
{[%clk 0:00:01.7]} 52... Nd4 {[%clk 0:00:47.4]} 53. h8=Q {[%clk 0:00:02.6]}
53... Nf3+ {[%clk 0:00:46.5]} 54. Kh5 {[%clk 0:00:02.4]} 54... e2 {[%clk
0:00:46.1]} 55. Qe8+ {[%clk 0:00:02.4]} 55... Kxf6 {[%clk 0:00:46.5]} 56. Qxe2
{[%clk 0:00:03.2]} 56... Nd4 {[%clk 0:00:45.5]} 57. Qe5+ {[%clk 0:00:03.5]} 1-0